fUST/lending_fUST_20240630
["ID","MTS","AMOUNT","RATE_DAILY","PERIOD"]
[330738228,1719748066868,162.91090393,0.00014999,2]
[330738229,1719748074174,402.85732737,0.00014999,2]
[330738230,1719748086246,226.67659189,0.00014999,2]
[330738231,1719748088352,195.63878333,0.00014999,2]
[330738232,1719748089871,309.6439095,0.00014999,2]
[330738233,1719748112913,195.63878333,0.00014999,2]
[330738235,1719748133173,157.31692193,0.00014999,2]
[330738236,1719748139379,155.6405351,0.00014999,2]
[330738237,1719748148207,24900.0,0.00014384,2]
[330738238,1719748150164,273.37336231,9.9e-05,2]
[330738239,1719748153719,-772.27318343,0.000153,2]
[330738240,1719748153761,-772.27318343,0.000153,2]
[330738241,1719748158814,273.37336231,9.9e-05,2]
[330738242,1719748172835,200.70286895,0.00014999,2]
[330738243,1719748173465,286.62229144,0.00014999,2]
[330738244,1719748178399,-803.16411077,0.000153,2]
[330738245,1719748178459,-803.16411077,0.000153,2]
[330738246,1719748178512,-163.26291443,0.000153,2]
[330738247,1719748181676,302.06902951,0.00012,2]
[330738248,1719748188712,273.37336231,9.9e-05,2]
[330738249,1719748196668,273.37336231,9.9e-05,2]
[330738250,1719748201369,776.37615452,0.00014999,2]
[330738251,1719748205128,273.37336231,9.9e-05,2]
[330738252,1719748214002,273.37336231,9.9e-05,2]
[330738253,1719748219343,200.70286895,0.00012,2]
[330738254,1719748219561,296.73630044,0.00014999,2]
[330738255,1719748220017,154.93274368,0.00014999,2]
[330738256,1719748220960,286.20727657,0.00012,2]
[330738297,1719748233208,1433.52239716,0.00012,2]
[330738298,1719748233686,157.19006853,0.00012,2]
[330738311,1719748238308,4111.12943831,0.00012,2]
[330738347,1719748240582,-300.0,0.00015299,2]
[330738348,1719748240597,-2923.93013677,0.000153,2]
[330738444,1719748243755,-12560.0,0.000153,2]
[330738712,1719748246419,-6666.79980568,0.000153,2]
[330738714,1719748246429,-333.20019432,0.00015331,2]
[330739755,1719748258007,3925.7164855,0.00014999,2]
[330739767,1719748258141,565.7746747,0.00012,2]
[330739775,1719748258872,776.37615452,0.00012,2]
[330739799,1719748275372,338.20218007,0.00012,2]
[330739800,1719748275815,6978.60574622,0.00014999,2]
[330739801,1719748309662,525.6656446,0.00014545,2]
[330739802,1719748318151,264.41306092,0.00014545,2]
[330739803,1719748318893,883.91597068,0.00014545,2]
[330739804,1719748336778,3000.0,0.00014374,2]
[330739807,1719748419186,1547.82,0.0001401,2]
[330739808,1719748439577,199.94488259,0.00015,2]
[330739809,1719748461740,1005.2631448,0.00014366,2]
[330739817,1719748819286,1059.89698882,0.00014564,2]
[330739818,1719748826411,1118.32966201,0.00014999,2]
[330739819,1719748907147,154.83742071,0.00014999,2]
[330739820,1719748932149,9014.80435406,0.00014998,2]
[330739821,1719748938827,580.70270839,0.00014999,2]
[330739822,1719748974031,156.55438487,0.00014999,2]
[330739823,1719749006218,402.64531294,0.00014999,2]
[330739824,1719749016415,1117.74863961,0.00014999,2]
[330739827,1719749050001,273.37336231,9.9e-05,2]
[330739828,1719749066043,273.37336231,9.9e-05,2]
[330739829,1719749070298,208.37564863,0.00014999,2]
[330739830,1719749073452,155.59755157,0.00014999,2]
[330739831,1719749073966,273.37336231,9.9e-05,2]
[330739833,1719749082650,273.37336231,9.9e-05,2]
[330739835,1719749090652,530.94,0.00010959,2]
[330739836,1719749091370,273.37336231,9.9e-05,2]
[330739837,1719749099631,273.37336231,9.9e-05,2]
[330739838,1719749101379,442.45,0.00010959,2]
[330739839,1719749108243,273.37336231,9.9e-05,2]
[330739840,1719749117157,273.37336231,9.9e-05,2]
[330739842,1719749125185,273.37336231,9.9e-05,2]
[330739843,1719749132762,325.8,0.00010959,2]
[330739844,1719749133748,273.37336231,9.9e-05,2]
[330739845,1719749138355,238.7178755,0.00014999,2]
[330739846,1719749141799,273.37336231,9.9e-05,2]
[330739847,1719749150894,273.37336231,9.9e-05,2]
[330739848,1719749154904,309.0978294,0.00014312,2]
[330739849,1719749159636,273.37336231,9.9e-05,2]
[330739850,1719749166648,154.83742071,0.00012,2]
[330739851,1719749168260,273.37336231,9.9e-05,2]
[330739853,1719749176672,273.37336231,9.9e-05,2]
[330739854,1719749177511,286.62229144,0.00014999,2]
[330739856,1719749185190,273.37336231,9.9e-05,2]
[330739859,1719749193953,273.37336231,9.9e-05,2]
[330739860,1719749202003,273.37336231,9.9e-05,2]
[330739861,1719749204648,220.34106904,0.00012,2]
[330739862,1719749210339,273.37336231,9.9e-05,2]
[330739864,1719749221056,222.24319375,0.00012,2]
[330739865,1719749223559,309.597524,0.00012,2]
[330739866,1719749226743,273.37336231,9.9e-05,2]
[330739867,1719749237914,154.83742071,0.00012,2]
[330739869,1719749250018,273.37336231,9.9e-05,2]
[330739870,1719749253192,400.959349,0.00014309,2]
[330739871,1719749258052,273.37336231,9.9e-05,2]
[330739872,1719749263263,509.9900595,0.00014312,2]
[330739873,1719749266922,273.37336231,9.9e-05,2]
[330739874,1719749275466,273.37336231,9.9e-05,2]
[330739875,1719749279791,4700.33890069,0.00012,2]
[330739876,1719749283859,309.5511354,0.00012,2]
[330739877,1719749284227,273.37336231,9.9e-05,2]
[330739878,1719749292259,273.37336231,9.9e-05,2]
[330739879,1719749301036,273.37336231,9.9e-05,2]
[330739883,1719749309993,273.37336231,9.9e-05,2]
[330739884,1719749320199,273.37336231,9.9e-05,2]
[330739885,1719749328891,273.37336231,9.9e-05,2]
[330739886,1719749335798,4689.21379075,0.00012,2]
[330739887,1719749339428,273.37336231,9.9e-05,2]
[330739888,1719749347697,273.37336231,9.9e-05,2]
[330739892,1719749353625,150.0,0.00014822,2]
[330739893,1719749355986,273.37336231,9.9e-05,2]
[330739894,1719749359144,-190.78309208,0.000151,2]
[330739895,1719749359174,-552.39813556,0.00015281,2]
[330739896,1719749359228,-342.89169593,0.00015281,2]
[330739897,1719749359257,-400.28953171,0.00015281,2]
[330739898,1719749364115,273.37336231,9.9e-05,2]
[330739899,1719749372197,273.37336231,9.9e-05,2]
[330739900,1719749380063,273.37336231,9.9e-05,2]
[330739901,1719749380890,155.42803169,0.00012,2]
[330739902,1719749383957,-495.00029974,0.00015281,2]
[330739903,1719749383987,-277.908177,0.00015282,2]
[330739904,1719749384026,-572.63456045,0.00015282,2]
[330739905,1719749388206,273.37336231,9.9e-05,2]
[330739906,1719749396324,273.37336231,9.9e-05,2]
[330739907,1719749405268,273.37336231,9.9e-05,2]
[330739908,1719749414134,273.37336231,9.9e-05,2]
[330739909,1719749419678,15655.9897905,0.00014488,2]
[330739910,1719749423421,273.37336231,9.9e-05,2]
[330739911,1719749431379,273.37336231,9.9e-05,2]
[330739976,1719749432671,-367.06535138,0.0001528,2]
[330739978,1719749432681,-367.06535138,0.0001528,2]
[330739980,1719749432691,-367.06535138,0.00015281,2]
[330739982,1719749432700,-367.06535138,0.00015281,2]
[330739984,1719749432709,-208.16020653,0.00015281,2]
[330739987,1719749432720,-158.90514485,0.00015281,2]
[330739989,1719749432730,-641.99484944,0.00015293,2]
[330739990,1719749432740,-300.0,0.00015349,2]
[330739992,1719749432749,-300.0,0.00015349,2]
[330739994,1719749432758,-1919.30000571,0.0001535,2]
[330740420,1719749438472,-3321.69999999,0.0001535,2]
[330740547,1719749439737,-378.33321948,0.0001535,2]
[330740561,1719749439949,273.37336231,9.9e-05,2]
[330740801,1719749442275,-1268.41937026,0.0001535,2]
[330741187,1719749448348,201.40679933,9.9e-05,2]
[330741833,1719749456658,273.37336231,9.9e-05,2]
[330741883,1719749461351,235.6,0.00010959,2]
[330741884,1719749464676,273.37336231,9.9e-05,2]
[330741885,1719749471833,196.33,0.00010959,2]
[330741886,1719749473653,273.37336231,9.9e-05,2]
[330741887,1719749479720,3514.22045028,0.00015,2]
[330741888,1719749481982,273.37336231,9.9e-05,2]
[330741889,1719749482305,163.61,0.00010959,2]
[330741890,1719749490310,273.37336231,9.9e-05,2]
[330741891,1719749493100,818.09,0.00010959,2]
[330741892,1719749499251,1433.52239716,0.00012,2]
[330741893,1719749520519,273.37336231,9.9e-05,2]
[330741894,1719749523496,22548.05260096,0.00015,2]
[330741895,1719749529132,273.37336231,9.9e-05,2]
[330741896,1719749537527,273.37336231,9.9e-05,2]
[330741897,1719749545553,273.37336231,9.9e-05,2]
[330741898,1719749553669,273.37336231,9.9e-05,2]
[330741899,1719749555397,5254.40949514,0.00012,2]
[330741900,1719749556696,10562.28786365,0.00012,2]
[330741901,1719749560266,1772.04554263,0.00012,2]
[330741902,1719749560689,1082.91130671,0.00012,2]
[330741903,1719749562383,179.54081427,0.00012,2]
[330741904,1719749562783,531.11088939,0.00012,2]
[330741905,1719749563533,2129.2320514,0.00012,2]
[330741906,1719749564847,516.79936011,0.00012,2]
[330741907,1719749565403,161.15608545,0.00012,2]
[330741908,1719749566885,842.64804764,0.00012,2]
[330741909,1719749569180,723.78639686,0.00012,2]
[330741910,1719749569215,273.37336231,9.9e-05,2]
[330741911,1719749569774,4689.21379075,0.00012,2]
[330741912,1719749571133,318.0694556,0.00012,2]
[330741913,1719749571766,299.76773289,0.00012,2]
[330741914,1719749573854,292.99777244,0.00012,2]
[330741915,1719749575206,1433.52239716,0.00012,2]
[330741916,1719749577948,273.37336231,9.9e-05,2]
[330741917,1719749581132,309.59753017,0.00012,2]
[330741918,1719749586332,273.37336231,9.9e-05,2]
[330741919,1719749587447,597.70730701,0.00012,2]
[330741920,1719749595207,273.37336231,9.9e-05,2]
[330741921,1719749603140,273.37336231,9.9e-05,2]
[330741922,1719749605818,309.6439095,0.00014545,2]
[330741923,1719749611469,273.37336231,9.9e-05,2]
[330741924,1719749616626,1564.60214875,0.00014545,2]
[330741925,1719749619893,273.37336231,9.9e-05,2]
[330741926,1719749628676,273.37336231,9.9e-05,2]
[330741927,1719749630193,6976.32251601,0.00014545,2]
[330741928,1719749637272,273.37336231,9.9e-05,2]
[330741929,1719749645872,273.37336231,9.9e-05,2]
[330741930,1719749654523,273.37336231,9.9e-05,2]
[330741931,1719749663659,273.37336231,9.9e-05,2]
[330741932,1719749671595,273.37336231,9.9e-05,2]
[330741933,1719749679724,273.37336231,9.9e-05,2]
[330741934,1719749685211,1433.79006949,0.00012,2]
[330741935,1719749688225,273.37336231,9.9e-05,2]
[330741936,1719749703580,273.37336231,9.9e-05,2]
[330741937,1719749711627,273.37336231,9.9e-05,2]
[330741938,1719749714088,245.5391087,0.00012,2]
[330741939,1719749719882,273.37336231,9.9e-05,2]
[330741940,1719749728476,273.37336231,9.9e-05,2]
[330741942,1719749737334,273.37336231,9.9e-05,2]
[330741943,1719749737383,3000.0,0.00014378,2]
[330741944,1719749745325,273.37336231,9.9e-05,2]
[330741945,1719749745694,309.61298378,0.00012,2]
[330741946,1719749755374,273.37336231,9.9e-05,2]
[330741947,1719749765604,597.70730701,0.00014545,2]
[330741952,1719749813878,1670.98225881,0.00014545,2]
[330741954,1719749868257,402.01746783,0.00014999,2]
[330741955,1719749881269,200.479674,0.0001432,2]
[330741958,1719750051156,402.01746783,0.00014999,2]
[330741959,1719750078564,286.62229144,0.00014999,2]
[330741962,1719750215166,538.98777989,0.00014999,2]
[330741963,1719750229572,263.0881198,0.00014999,2]
[330741964,1719750316768,1433.79006949,0.00014999,2]
[330741967,1719750331767,1433.79006949,0.00014999,2]
[330741972,1719750438950,200.479675,0.00014319,2]
[330741986,1719750480792,1061.42221962,0.00014999,2]
[330741989,1719750532140,196.73533621,0.00014999,2]
[330742042,1719750638841,-300.0,0.00015349,2]
[330742044,1719750638851,-300.0,0.00015349,2]
[330742059,1719750638986,-487.07962084,0.0001535,2]
[330742061,1719750638999,-1911.17020323,0.0001535,2]
[330742064,1719750639017,-516.6151856,0.0001535,2]
[330742312,1719750641736,-586.00828344,0.00015277,2]
[330742313,1719750641746,-5220.73975389,0.0001535,2]
[330742314,1719750641756,-6057.02,0.00015376,2]
[330742315,1719750641766,-500.0,0.00015376,2]
[330742316,1719750641775,-1665.53,0.00015376,2]
[330742317,1719750641784,-570.18002001,0.00015376,2]
[330742318,1719750641809,-437.39943845,0.00015278,2]
[330742405,1719750643788,-148.60884498,0.00015278,2]
[330742406,1719750643798,-586.00828343,0.00015278,2]
[330742407,1719750643809,-3858.62997999,0.00015376,2]
[330742408,1719750643819,-500.0,0.00015376,2]
[330742409,1719750643829,-500.0,0.00015376,2]
[330742410,1719750643838,-500.0,0.00015376,2]
[330742411,1719750643847,-697.97,0.00015376,2]
[330742412,1719750643856,-2229.48458809,0.00015377,2]
[330742415,1719750644103,-1010.95391355,0.00015377,2]
[330742417,1719750644114,-289.89676959,0.00015377,2]
[330742420,1719750644125,-649.45433633,0.00015377,2]
[330742439,1719750646813,-586.00828343,0.00015279,2]
[330742441,1719750646823,-500.0,0.00015376,2]
[330742444,1719750646832,-18840.27662348,0.00015377,2]
[330742457,1719750646956,-305.47,0.00015377,2]
[330743014,1719750662923,208.4315416,0.00014999,2]
[330743015,1719750691798,1000.0,0.00019,21]
[330743021,1719750786292,972.86572804,0.00014999,2]
[330743023,1719750810848,464.4464284,0.00014328,2]
[330743024,1719750840135,1000.0,0.00015,9]
[330743038,1719750918864,24900.0,0.00014351,2]
[330743040,1719750975817,2003.19315313,0.00014999,2]
[330743047,1719751041571,1071.63192771,0.00014999,2]
[330743050,1719751078788,304.10865476,0.00014999,2]
[330743051,1719751118452,165.20919927,0.00014999,2]
[330743052,1719751129649,2187.90231546,0.0001,2]
[330743055,1719751194294,159.35965211,0.00014999,2]
[330743057,1719751207196,1937.86709152,0.00014999,2]
[330743067,1719751218788,1756.48103849,0.00014999,2]
[330743070,1719751261106,776.11834176,0.00012121,2]
[330743074,1719751343933,155.48803147,0.00014692,2]
[330743094,1719751558279,154.83742071,0.00014999,2]
[330743109,1719751642804,1356.76,0.00015,2]
[330743117,1719751724971,-150.0,0.0001511,2]
[330743118,1719751725158,-569.00923129,0.0001513,2]
[330743119,1719751725201,-719.00923129,0.0001513,2]
[330743122,1719751749389,-747.76960055,0.0001513,2]
[330743123,1719751749469,-631.94145347,0.0001513,2]
[330743124,1719751749538,-747.76960055,0.0001513,2]
[330743126,1719751774524,-190.78309208,0.00015178,2]
[330743127,1719751774555,-599.53612156,0.00015254,2]
[330743128,1719751774599,-21.56362092,0.00015254,2]
[330743129,1719751774632,-617.84163629,0.00015274,2]
[330743130,1719751774664,-36.94118385,0.00015275,2]
[330743182,1719751832857,-158.39491064,0.00015275,2]
[330743184,1719751832867,-195.33609447,0.00015276,2]
[330743186,1719751832877,-195.33609447,0.00015276,2]
[330743201,1719751833008,-300.0,0.00015372,2]
[330743203,1719751833018,-5804.64,0.00015373,2]
[330743205,1719751833028,-500.0,0.00015373,2]
[330743207,1719751833037,-1596.13,0.00015373,2]
[330743209,1719751833047,-4244.27,0.00015373,2]
[330743211,1719751833056,-668.89,0.00015373,2]
[330743213,1719751833065,-500.0,0.00015373,2]
[330743215,1719751833075,-500.0,0.00015373,2]
[330743217,1719751833084,-500.0,0.00015374,2]
[330743219,1719751833093,-500.0,0.00015374,2]
[330743221,1719751833102,-736.09,0.00015374,2]
[330743223,1719751833112,-500.0,0.00015374,2]
[330743225,1719751833125,-2086.54290042,0.00015374,2]
[330743698,1719751837972,-280.86267126,0.00015374,2]
[330743700,1719751837983,-2002.49286188,0.00015374,2]
[330743702,1719751837995,-334.85706449,0.00015374,2]
[330743820,1719751843262,-12768.26089616,0.00015374,2]
[330744119,1719751846840,-3436.85058478,0.00015374,2]
[330744179,1719751968811,804.39407024,0.00014999,2]
[330744180,1719751970552,4280.5349965,0.00014374,2]
[330744186,1719752142343,360.24777023,0.00014374,2]
[330744190,1719752206128,803.51613156,0.00014374,2]
[330744191,1719752218324,3381.8639545,0.00014999,2]
[330744194,1719752283472,14477.8434492,0.00014316,2]
[330744195,1719752304974,283.400311,0.00014316,2]
[330744204,1719752348791,2117.15878926,0.00014999,2]
[330744205,1719752357743,172.54866156,0.00014999,2]
[330744206,1719752359821,5214.38773308,0.00014998,2]
[330744208,1719752431293,2054.46626808,0.00014999,2]
[330744209,1719752442344,1143.98164973,0.00014999,2]
[330744211,1719752453788,909.52292055,0.00015,2]
[330744212,1719752456389,1433.52239716,0.00014999,2]
[330744213,1719752457118,2130.41057228,0.00014999,2]
[330744214,1719752469399,157.19006853,0.00014999,2]
[330744215,1719752473907,1481.07570588,0.00015,2]
[330744216,1719752496806,746.81527298,0.00014999,2]
[330744219,1719752540197,155.1783859,0.00014999,2]
[330744220,1719752568873,154.83742071,0.00014999,2]
[330744221,1719752573869,155.78725226,0.00014999,2]
[330744222,1719752579478,2095.0106567,0.00014287,2]
[330744223,1719752580611,154.88382167,0.00014999,2]
[330744224,1719752584171,154.85288975,0.00014999,2]
[330744227,1719752603616,155.18633268,0.00014999,2]
[330744228,1719752609414,1317.96013097,0.00014999,2]
[330744229,1719752610620,776.37615452,0.00014999,2]
[330744230,1719752614079,179.63254397,0.00014999,2]
[330744231,1719752615571,155.21673135,0.00014999,2]
[330744232,1719752618447,303.39989808,0.00014999,2]
[330744233,1719752620332,310.54474823,0.00015,2]
[330744234,1719752628163,154.83742071,0.00014999,2]
[330744235,1719752636282,159.62800801,0.00014999,2]
[330744236,1719752642671,679.0,0.00025,120]
[330744237,1719752643166,154.83742071,0.00014999,2]
[330744239,1719752655662,221.55087959,0.00014999,2]
[330744240,1719752656807,267.19433174,0.00014999,2]
[330744241,1719752669520,393.86909153,0.00014999,2]
[330744247,1719752677341,201.45442955,0.00014999,2]
[330744248,1719752684238,155.00138827,0.00014999,2]
[330744249,1719752740738,155.23054728,0.00014999,2]
[330744250,1719752760363,250.0,0.00014312,2]
[330744251,1719752760622,266.39321061,0.00014999,2]
[330744253,1719752792571,179.51481294,0.00014999,2]
[330744256,1719752835167,237.23152103,0.00014999,2]
[330744259,1719752879198,442.05,0.00025,120]
[330744261,1719752908496,210.04761257,9.9e-05,2]
[330744262,1719752931572,853.517253,0.00014286,2]
[330744264,1719752973639,179.927424,0.00014999,2]
[330744906,1719753038191,-1002.5841208,0.00015186,2]
[330744911,1719753038241,-4283.76067864,0.00015186,2]
[330744912,1719753038250,-252.04800971,0.00015271,2]
[330744914,1719753038259,-300.0,0.00015271,2]
[330744916,1719753038268,-300.0,0.00015272,2]
[330744918,1719753038278,-682.33808653,0.00015273,2]
[330745225,1719753043368,-641.02,0.00015369,2]
[330745226,1719753043377,-500.0,0.00015369,2]
[330745228,1719753043387,-500.0,0.00015369,2]
[330745230,1719753043396,-10115.64163131,0.0001537,2]
[330745232,1719753043406,-2103.33810998,0.0001537,2]
[330745255,1719753043636,-333.92645003,0.0001537,2]
[330745257,1719753043648,-1963.33543999,0.0001537,2]
[330745259,1719753043657,-1295.57014047,0.0001537,2]
[330745469,1719753046318,-580.97,0.00015369,2]
[330745471,1719753046328,-6657.22985953,0.0001537,2]
[330745473,1719753046339,-3469.58,0.0001537,2]
[330745475,1719753046349,-5562.78,0.0001537,2]
[330745477,1719753046360,-500.0,0.0001537,2]
[330745479,1719753046370,-500.0,0.0001537,2]
[330745481,1719753046380,-500.0,0.0001537,2]
[330745483,1719753046390,-1580.38,0.0001537,2]
[330745485,1719753046400,-651.9,0.0001537,2]
[330745487,1719753046410,-151.0,0.0001537,2]
[330745489,1719753046419,-200.006866,0.0001537,2]
[330745491,1719753046428,-151.0,0.0001537,2]
[330745493,1719753046438,-200.006866,0.0001537,2]
[330745496,1719753046448,-151.0,0.0001537,2]
[330745498,1719753046458,-151.0,0.0001537,2]
[330745500,1719753046468,-200.006866,0.0001537,2]
[330745502,1719753046477,-200.006866,0.0001537,2]
[330745504,1719753046487,-500.0,0.0001537,2]
[330745506,1719753046497,-82.87703382,0.0001537,2]
[330746237,1719753108348,309.6439095,0.00014999,2]
[330746238,1719753109632,154.83742071,0.00014999,2]
[330746241,1719753167106,163.738245,9.9e-05,2]
[330746244,1719753244635,154.83742071,0.00014999,2]
[330746247,1719753374297,384.018253,0.00014369,2]
[330746248,1719753398147,154.83742071,0.00014999,2]
[330746250,1719753462808,7146.386127,0.00014,2]
[330746251,1719753474425,2416.91747958,0.00015,2]
[330746252,1719753539764,207.76713087,0.00014999,2]
[330746254,1719753553791,3000.0,0.00014303,2]
[330746255,1719753564411,1323.26248334,0.00014999,2]
[330746257,1719753575143,154.83742071,0.00014999,2]
[330746258,1719753587543,843.40945007,0.00014999,2]
[330746259,1719753726392,271.32677426,0.00014999,2]
[330746260,1719753737060,842.30353629,0.00014999,2]
[330746261,1719753738492,200.31969316,0.00014999,2]
[330746262,1719753757602,389.81234736,0.00014999,2]
[330746263,1719753773302,267.72798537,0.00014999,2]
[330746264,1719753796211,195.47966853,0.00014999,2]
[330746302,1719754232621,-167.59252921,0.00015149,2]
[330746303,1719754232631,-620.05498712,0.00015216,2]
[330746305,1719754232641,-164.1553246,0.00015223,2]
[330746306,1719754232650,-32.21541205,0.00015268,2]
[330746339,1719754240690,-267.78458795,0.00015268,2]
[330746340,1719754240701,-24678.63458869,0.00015269,2]
[330746341,1719754240712,-1865.51335051,0.00015271,2]
[330746342,1719754240723,-5582.92,0.00015367,2]
[330746343,1719754240733,-500.0,0.00015367,2]
[330746344,1719754240743,-1598.9,0.00015367,2]
[330746345,1719754240754,-3215.08405219,0.00015367,2]
[330746346,1719754240768,-1036.54594781,0.00015367,2]
[330746347,1719754240779,-500.0,0.00015367,2]
[330746348,1719754240789,-500.0,0.00015367,2]
[330746349,1719754240800,-643.34,0.00015367,2]
[330746350,1719754240811,-500.0,0.00015367,2]
[330746351,1719754240821,-500.0,0.00015367,2]
[330746352,1719754240831,-5057.82081566,0.00015368,2]
[330746353,1719754240841,-556.77,0.00015368,2]
[330746354,1719754240851,-500.0,0.00015368,2]
[330746355,1719754240862,-2935.5,0.00015368,2]
[330746356,1719754240873,-500.0,0.00015368,2]
[330746357,1719754240883,-500.0,0.00015368,2]
[330746358,1719754240894,-598.26,0.00015368,2]
[330746359,1719754240904,-500.0,0.00015368,2]
[330746360,1719754240918,-500.0,0.00015368,2]
[330746361,1719754240929,-3173.55409534,0.00015368,2]
[330746435,1719754270432,509.46,0.00010959,2]
[330746437,1719754338468,154.86619646,0.00013283,2]
[330746438,1719754339298,1680.94899016,0.00013283,2]
[330746439,1719754346891,154.85288975,0.00013283,2]
[330746440,1719754347828,182.41069143,0.00013283,2]
[330746441,1719754349371,1751.6118953,0.00013283,2]
[330746442,1719754349843,155.21649304,0.00013283,2]
[330746443,1719754351012,1400.26910057,0.00013283,2]
[330746444,1719754351960,401.65252924,0.00013283,2]
[330746445,1719754352105,4693.36413362,0.00013283,2]
[330746446,1719754352572,5349.4179388,0.00013283,2]
[330746447,1719754356211,181.53915781,0.00014,2]
[330746448,1719754356328,154.83742071,0.00013283,2]
[330746449,1719754362107,293.20606944,0.00013283,2]
[330746455,1719754551954,283.06585599,0.00014999,2]
[330746457,1719754553950,1466.71812487,0.00014999,2]
[330746458,1719754566765,208.23002771,0.00014999,2]
[330746459,1719754573858,207.66347557,0.00014999,2]
[330746463,1719754614487,154.83742071,0.00014999,2]
[330746465,1719754638916,284.3616309,0.00014999,2]
[330746466,1719754640452,1171.0897443,0.0001,2]
[330746467,1719754656339,1000.0,0.00015,5]
[330746468,1719754679916,412.57642763,0.00012121,2]
[330746476,1719754818942,201.89356844,0.00025,120]
[330746500,1719755325774,-718.4543565,0.00015167,2]
[330746501,1719755325820,-347.69667393,0.00015167,2]
[330746502,1719755325867,-718.4543565,0.00015167,2]
[330746503,1719755337992,2525.2295066,0.00014351,2]
[330746505,1719755350729,-725.55474896,0.00015268,2]
[330746515,1719755400838,-293.68338803,0.00015264,2]
[330746555,1719755433476,-2284.50826418,0.00015164,2]
[330746557,1719755433487,-247.93444551,0.00015264,2]
[330746559,1719755433496,-303.26081673,0.000153,2]
[330746563,1719755433580,-2732.6814265,0.000153,2]
[330746564,1719755433590,-300.0,0.00015363,2]
[330746565,1719755433599,-500.0,0.00015364,2]
[330746566,1719755433611,-500.0,0.00015364,2]
[330746567,1719755433620,-500.0,0.00015364,2]
[330746569,1719755433630,-500.0,0.00015364,2]
[330746571,1719755433640,-175.98316068,0.00015364,2]
[330746618,1719755439059,-324.01683932,0.00015364,2]
[330746620,1719755439069,-382.69751023,0.00015364,2]
[330746622,1719755439079,-294.93075129,0.00015364,2]
[330746883,1719755443315,-410.48924871,0.00015364,2]
[330746885,1719755443325,-200.77325294,0.00015364,2]
[330746887,1719755443334,-936.15,0.00015364,2]
[330746889,1719755443343,-500.0,0.00015364,2]
[330746892,1719755443353,-500.0,0.00015364,2]
[330746895,1719755443362,-501.70799239,0.00015364,2]
[330746897,1719755443371,-503.25470798,0.00015364,2]
[330746900,1719755443380,-500.0,0.00015364,2]
[330746902,1719755443390,-500.0,0.00015364,2]
[330746904,1719755443400,-500.0,0.00015364,2]
[330746906,1719755443410,-267.59713216,0.00015364,2]
[330747235,1719755446855,-550.41286784,0.00015364,2]
[330747237,1719755446865,-500.0,0.00015364,2]
[330747239,1719755446874,-501.20225164,0.00015364,2]
[330747241,1719755446884,-588.07,0.00015364,2]
[330747243,1719755446893,-3807.09385467,0.00015364,2]
[330747252,1719755446968,-509.45704281,0.00015364,2]
[330747254,1719755446979,-757.79507065,0.00015364,2]
[330756373,1719755593594,3061.07995584,0.00014999,4]
[330756374,1719755594255,617.26390047,0.00014999,2]
[330756375,1719755609982,151.11175224,0.00015027,2]
[330756376,1719755669199,24900.0,0.00014363,2]
[330756379,1719755927556,963.5301908,0.00014999,2]
[330756380,1719755947475,1000.0,0.00015,5]
[330756381,1719755953563,179.27418986,0.00014999,2]
[330756382,1719755965177,157.2682199,0.00014999,2]
[330756383,1719755972744,1000.0,0.00015,4]
[330756384,1719755977731,2041.8718293,0.00014999,2]
[330756385,1719755977775,1914.02350809,0.00014999,2]
[330756386,1719755978980,273.37336231,9.9e-05,2]
[330756387,1719755983279,1313.011853,0.00014999,2]
[330756388,1719755984811,2129.2320514,0.00014999,2]
[330756389,1719755985816,1489.50778656,0.00014999,2]
[330756390,1719755989977,3074.87437864,0.00014999,2]